[Event "Silver Lake Festival 2022"]
[Site "Veliko Gradiste"]
[Date "2022.06.25"]
[Round "8.5"]
[White "Zanan, Evgeny"]
[Black "Manish Anto Cristiano F"]
[Result "1/2-1/2"]
[ECO "B92"]
[WhiteElo "2534"]
[BlackElo "2071"]
[Annotator "TA"]
[PlyCount "103"]
[EventDate "2022.06.16"]
[EventType "swiss"]
[EventCountry "SRB"]
[SourceTitle "playchess.com"]
[Source "ChessBase"]
[SourceQuality "1"]
[TimeControl "5400+30"]

{[%evp 22,103,10,2,118,96,102,103,85,65,72,65,72,64,130,50,55,58,53,63,63,45,50,36,35,17,7,0,56,50,60,39,26,33,29,0,23,36,83,74,79,64,79,78,72,68,131,86,464,459,451,457,454,437,600,581,1381,1319,29963,29967,29963,0,0,0,0,0,0,0,0,0,0,0,0,0,0,0,0,0,0,0,0,0,0,0]} 1. e4 {[%emt 0:08:13]} c5 {[%emt 0:00:19]} 2. Nf3 {[%emt 0:00:06]} d6 {[%emt 0:00:23]} 3. d4 {[%emt 0:00:07]} cxd4 {[%emt 0:00:07]} 4. Nxd4 {[%emt 0:00:05]} Nf6 {[%emt 0:00:42]} 5. Nc3 {[%emt 0:00:06]} a6 {[%emt 0:00:07]} 6. Be2 {[%emt 0:00:06]} e5 {[%emt 0:00:12]} 7. Nb3 {[%emt 0:00:05]} Be7 {[%emt 0:00:38]} 8. O-O {[%emt 0:00:07]} O-O {[%emt 0:01:51]} 9. Kh1 {[%emt 0:00:05]} Be6 {[%emt 0:01:31]} 10. f4 {[%emt 0:03:35]} exf4 {[%emt 0:00:12]} 11. Bxf4 {[%emt 0:00:07]} Nc6 {[%emt 0:00:55]} 12. Qe1 {[%emt 0:00:53]} d5 {[%emt 0:01:40] B92: Sicilian Najdorf: 6 Be2.} (12... Nd7 $11 {remains equal.}) 13. exd5 $16 {[%emt 0:07:15]} Nxd5 {[%emt 0:00:46]} 14. Rd1 {[%emt 0:02:06] Strongly threatening Nxd5.} Bb4 {[%emt 0:05:47] White is better.} 15. Qg3 {[%emt 0:32:06]} Bxc3 {[%emt 0:19:37]} 16. bxc3 {[%emt 0:00:07]} Qf6 {[%emt 0:01:35] Inhibits Bh6.} 17. Bd6 {[%emt 0:02:43][%csl LRf6,LRf8] [#]} Qxc3 $146 {[%emt 0:02:12]} (17... Qg6 $1 $14) ({Predecessor:} 17... Qg6 18. Qxg6 hxg6 19. Bxf8 Rxf8 20. Bf3 Ne3 21. Nc5 Bxa2 22. Ra1 Nxf1 23. Rxa2 Nd2 24. Bxc6 bxc6 25. Rxa6 {½-½ (50) Womacka,M (2449)-Kholin,A (2405) Chess.com INT 2019}) 18. Bxf8 {[%emt 0:00:35] White is more active. A strong pair of Bishops.} ({White should try} 18. Rd3 $16 Qxc2 19. Rd2) 18... Qxg3 $14 {[%emt 0:16:27]} 19. hxg3 {[%emt 0:00:07]} Nc3 $1 {[%emt 0:00:08] [#]} 20. Bd6 {[%emt 0:06:39] Bf3 is the strong threat.} Nxe2 {[%emt 0:00:08]} 21. Rd2 {[%emt 0:01:03]} Nc3 {[%emt 0:08:34]} 22. Nc5 {[%emt 0:00:53] Against Ne4} Bxa2 {[%emt 0:01:43]} 23. Rf3 {[%emt 0:02:44]} Nb1 {[%emt 0:04:01]} 24. Rd1 {[%emt 0:03:24]} b6 {[%emt 0:00:51]} ({Black should play} 24... b5 $1 $11) 25. Ne4 {[%emt 0:17:13][%mdl 1024] White has compensation.} Re8 {[%emt 0:10:38]} 26. Re3 $36 {[%emt 0:03:04][%cal Oe4f6][%mdl 2048] Black must now prevent Nf6+! White fights for an advantage.} Re6 {[%emt 0:00:47] Against Nf6+} 27. Bf4 {[%emt 0:00:05]} h6 {[%emt 0:04:02] Against Ng5} 28. Rd6 {[%emt 0:01:17]} Nb4 {[%emt 0:04:08]} 29. c3 {[%emt 0:07:53]} Rxd6 {[%emt 0:04:51]} (29... Nc2 $14 30. Re2 Nba3) 30. Nxd6 $16 {[%emt 0:00:33]} Nd5 {[%emt 0:00:22][%csl LRc3,LRe3]} 31. Re8+ {[%emt 0:00:12]} Kh7 {[%emt 0:00:01]} 32. c4 {[%emt 0:00:06]} Nxf4 {[%emt 0:01:30]} 33. gxf4 {[%emt 0:00:01][%mdl 4096] Endgame KRN-KBN} Nd2 {[%emt 0:00:22]} (33... Na3 $1 $14) 34. Nxf7 {[%emt 0:02:41]} Bxc4 $2 {[%emt 0:00:46][%mdl 8192]} (34... Nxc4 $16 35. f5 g5) 35. Rh8+ $18 {[%emt 0:00:05]} Kg6 {[%emt 0:00:06]} 36. Ne5+ {[%emt 0:00:02]} Kf5 {[%emt 0:00:07] [#]} 37. Rd8 $1 {[%emt 0:00:07]} Kxf4 {[%emt 0:00:53]} 38. Nxc4 {[%emt 0:00:04]} Nxc4 {[%emt 0:00:06] KR-KN} 39. Rd4+ {[%emt 0:00:03]} Ke3 {[%emt 0:00:24]} 40. Rxc4 {[%emt 0:00:06] KR-KP} b5 {[%emt 0:00:04] [#]} 41. Rc7 $2 {[%emt 0:03:28]} (41. Rc6 $1 {mates} a5 42. Rc5 b4 43. Rxa5 Kd3 44. Rb5 Kc3 45. Kh2 b3 46. Kg3) 41... b4 $11 {[%emt 0:00:01] The position is equal.} 42. Rxg7 {[%emt 0:00:32] Rg6 would kill now. KR-K3P} Kd2 {[%emt 0:00:23]} 43. Rd7+ {[%emt 0:00:17]} Kc2 {[%emt 0:00:11]} 44. Rc7+ {[%emt 0:00:20]} Kd2 {[%emt 0:00:01]} 45. Rb7 {[%emt 0:00:42]} Kc3 {[%emt 0:00:31]} 46. Ra7 {[%emt 0:00:41]} b3 {[%emt 0:00:06] And now ...b2 would win.} 47. Rxa6 {[%emt 0:00:07]} b2 {[%emt 0:00:04]} 48. Rb6 {[%emt 0:00:35]} Kc2 {[%emt 0:00:01]} 49. g4 {[%emt 0:00:41] White threatens Kh2 and mate.} b1=Q+ {[%emt 0:00:08]} 50. Rxb1 {[%emt 0:00:02]} Kxb1 {[%emt 0:00:05]} 51. Kg2 {[%emt 0:00:01] Threatening mate with Kg3.} Kc2 {[%emt 0:00:11]} 52. Kf3 {[%emt 0:00:06] White really could win this.  Weighted Error Value: White=0.21 (precise) /Black=0.55} 1/2-1/2

[Event "Silver Lake Festival 2022"]
[Site "Veliko Gradiste"]
[Date "2022.06.25"]
[Round "8.6"]
[White "Markovic, Zoran S"]
[Black "Sadikhov, Ulvi"]
[Result "1/2-1/2"]
[ECO "B33"]
[WhiteElo "2313"]
[BlackElo "2491"]
[Annotator "TA"]
[PlyCount "55"]
[EventDate "2022.06.16"]
[EventType "swiss"]
[EventCountry "SRB"]
[SourceTitle "playchess.com"]
[Source "ChessBase"]
[SourceQuality "1"]
[TimeControl "5400+30"]

{[%evp 18,55,40,30,37,35,58,57,47,41,68,34,35,41,89,59,60,42,35,40,47,37,41,25,47,33,33,12,14,11,14,13,18,15,15,0,67,71,68,0]} 1. e4 {[%emt 0:00:03]} c5 {[%emt 0:00:04]} 2. Nf3 {[%emt 0:00:08]} Nc6 {[%emt 0:00:06]} 3. d4 {[%emt 0:00:09]} cxd4 {[%emt 0:00:05]} 4. Nxd4 {[%emt 0:00:07]} Qb6 {[%emt 0:00:04]} 5. Nb3 {[%emt 0:00:31]} Nf6 {[%emt 0:00:06]} 6. Nc3 {[%emt 0:00:40]} e6 {[%emt 0:00:05]} 7. Bd3 {[%emt 0:00:33]} a6 {[%emt 0:00:23]} 8. Be3 {[%emt 0:00:45]} Qc7 {[%emt 0:00:09]} 9. f4 {[%emt 0:00:21]} d6 {[%emt 0:00:20]} 10. Qf3 {[%emt 0:00:57]} b5 {[%emt 0:00:29] 10...Be7 is vanishing. B33: Sicilian: Pelikan and Sveshnikov Variations.} 11. g4 {[%emt 0:01:16]} h6 {[%emt 0:00:57]} 12. O-O-O {[%emt 0:01:32]} Bb7 {[%emt 0:00:22][%cal Od6d5]} 13. Kb1 {[%emt 0:03:10]} Be7 {[%emt 0:03:03]} 14. Rhg1 {[%emt 0:09:50]} Nd7 {[%emt 0:01:59]} 15. Qf2 {[%emt 0:06:58] [#]} Na5 $146 {[%emt 0:07:09]} (15... g5 $14 {might be stronger.}) ({Predecessor:} 15... g5 16. Rgf1 gxf4 17. Bxf4 Nce5 18. Be3 O-O-O 19. h3 h5 20. g5 Rdg8 21. Bxb5 axb5 22. Nxb5 {½-½ (36) Thorhallsson,T (2433)-Hansen,S (2284) Reykjavik 2009}) 16. Nxa5 {[%emt 0:03:51]} Qxa5 {[%emt 0:00:06]} 17. e5 {[%emt 0:15:28]} (17. f5 $5 {[%cal Rg4g5]}) 17... dxe5 {[%emt 0:14:13]} 18. f5 {[%emt 0:00:55]} O-O-O $1 {[%emt 0:11:29]} 19. fxe6 {[%emt 0:03:01]} fxe6 {[%emt 0:00:06]} 20. Be4 {[%emt 0:19:08]} Qc7 {[%emt 0:06:09]} 21. Qf7 {[%emt 0:11:54][%csl LRe6,LRe7,LRg7]} Bc5 {[%emt 0:01:06] [#] Threatens to win with ...Bxe4.} 22. Rde1 {[%emt 0:04:51]} Bb4 {[%emt 0:18:30]} 23. Bxb7+ {[%emt 0:01:03]} Kxb7 {[%emt 0:00:45]} 24. Qxg7 {[%emt 0:01:52]} Bxc3 25. bxc3 {[%emt 0:00:01]} Qxc3 {[%emt 0:04:24]} 26. Bc1 {[%emt 0:00:44]} Qc4 {[%emt 0:14:33]} ({Better is} 26... Qc6 $11) 27. Rd1 $14 {[%emt 0:14:12][%mdl 1024] White has compensation. Active counter play!} Qc6 {[%emt 0:17:18]} (27... Qb4+ $2 28. Bb2 Qc5 29. Rxd7+ $18) 28. Rgf1 {[%emt 0:00:30] Weighted Error Value: White=0.08 (flawless) /Black=0.15 (very precise)} (28. Ba3 $14) 1/2-1/2

[Event "Silver Lake Festival 2022"]
[Site "Veliko Gradiste"]
[Date "2022.06.25"]
[Round "8.7"]
[White "Ramoutar, Alan-Safar"]
[Black "Arias Gaviria, Mario Alexis"]
[Result "0-1"]
[ECO "C26"]
[WhiteElo "2477"]
[BlackElo "2181"]
[Annotator "TA"]
[PlyCount "130"]
[EventDate "2022.06.16"]
[EventType "swiss"]
[EventCountry "SRB"]
[SourceTitle "playchess.com"]
[Source "ChessBase"]
[SourceQuality "1"]
[TimeControl "5400+30"]

{[%evp 9,130,-7,-23,-19,0,-4,5,0,20,23,27,0,12,7,32,22,29,0,24,20,8,8,68,-7,-19,0,0,-75,-79,-90,-63,-148,-141,-144,-111,-152,-154,-224,-72,-72,-84,-70,-84,-55,-47,-118,-114,-193,-53,-50,-17,-271,-255,-258,-257,-245,-67,-65,0,0,0,0,0,0,0,-143,-133,-249,-243,-289,-277,-276,-277,-249,-210,-201,-185,-184,-141,-296,-281,-277,-278,-29954,-5601,-29956,-29958,-29962,-29962,-29961,-29962,-29958,-5220,-29968,-29967,-29966,-29967,-29979,-29980,-29980,-29981,-29980,-29981,-29982,-29983,-29986,-29987,-29987,-29984,-29986,-29985,-29985,-29985,-29985,-29986,-29986,-29987,-29987,-29988,-29988,-29989,-29989,-29988]} 1. e4 {[%emt 0:00:05]} e5 {[%emt 0:00:01]} 2. Nc3 {[%emt 0:00:12]} Nf6 {[%emt 0:00:58]} 3. d4 {[%emt 0:00:08]} exd4 {[%emt 0:05:25]} 4. Qxd4 {[%emt 0:00:10]} Nc6 {[%emt 0:00:02]} 5. Qd3 {[%emt 0:00:23]} Bc5 {[%emt 0:01:48]} 6. Bf4 {[%emt 0:00:14] C26: Vienna Game: 2...Nf6, sidelines .} d6 {[%emt 0:00:35]} 7. Qd2 {[%emt 0:00:14]} O-O {[%emt 0:01:00][%cal Of6e4]} 8. O-O-O {[%emt 0:00:49] The position is equal.} Be6 {[%emt 0:06:33][%cal Oe6a2]} 9. f3 {[%emt 0:02:09]} a6 {[%emt 0:00:58] [#]} 10. Kb1 $146 {[%emt 0:00:28]} ({Predecessor:} 10. g4 b5 11. Kb1 Nd7 12. h4 Nde5 13. h5 Bxg1 14. Rxg1 Nxf3 15. Qf2 Nxg1 16. Qxg1 {1-0 (33) Rorrer,G (2202)-Bures,V (2110) Chess.com INT 2021}) 10... b5 {[%emt 0:00:49]} 11. Nge2 {[%emt 0:02:37]} Qb8 {[%emt 0:10:50]} (11... b4 $5 {[%cal Rb4c3]} 12. Nd5 Bxd5 13. exd5 Ne7 $11) 12. Bg5 {[%emt 0:16:52]} Nd7 {[%emt 0:01:07]} 13. Nf4 {[%emt 0:04:42]} Re8 {[%emt 0:18:23]} 14. Nxe6 {[%emt 0:07:59]} fxe6 {[%emt 0:00:25]} 15. h4 {[%emt 0:03:47]} Nb6 {[%emt 0:00:15]} (15... Nce5 $11) 16. Rh3 {[%emt 0:10:38]} (16. Qe1 $14) 16... b4 $1 $36 {[%emt 0:00:51][%mdl 2048] Threatens to win with ...Bd4. Black fights for an advantage.} 17. Ne2 {[%emt 0:02:26] Inhibits Bd4.} Nc4 {[%emt 0:00:18]} 18. Qc1 {[%emt 0:08:37]} (18. Qe1 $1 $11 {remains equal.}) 18... Qb6 $17 {[%emt 0:02:22]} 19. Ng3 {[%emt 0:05:52]} N6e5 {[%emt 0:03:54]} 20. Bxc4 {[%emt 0:06:46]} (20. Nh5 $1 $15) 20... Nxc4 {[%emt 0:00:01]} 21. Ne2 {[%emt 0:07:43][%cal Og5h6] Against Bd4} d5 {[%emt 0:05:16]} 22. Rg3 {[%emt 0:04:36]} Bf2 $1 {[%emt 0:07:01]} 23. Bf6 {[%emt 0:00:42]} (23. Rh3 $17 {was worth a try.}) 23... Be3 $2 {[%emt 0:00:43]} (23... Bxg3 $19 {has better winning chances.} 24. Qg5 Re7 $3 {[%mdl 512]}) 24. Bxg7 {[%emt 0:02:33] aiming for Bd4+.} Bxc1 {[%emt 0:07:59] Active counter play!} (24... Na3+ 25. bxa3 bxa3+ 26. Qb2 $1 (26. Bb2+ $2 Kf7 $19) 26... axb2 27. Bd4+ Kf8 28. Bxb6 Bxb6 29. Nd4 $16 (29. Kxb2 Rab8 $14)) (24... Kf7 $5 25. Bd4 Bxc1 26. Bxb6 Bxb2 27. Bxc7 Bf6 $11) 25. Bd4+ {[%emt 0:00:05]} Kf7 {[%emt 0:00:05]} 26. Bxb6 {[%emt 0:00:10]} Bxb2 {[%emt 0:00:08]} 27. Bc5 {[%emt 0:03:03]} (27. Bxc7 $15 Bf6 28. e5 Na3+ 29. Kb2) 27... Bf6 {[%emt 0:03:17]} 28. Nf4 {[%emt 0:03:53]} (28. Bd4 $17) 28... Be5 {[%emt 0:02:05]} ({Black should try} 28... Nb2 $1 $19 {[%cal Rb2d1]} 29. Rh1 Na4) 29. Rg4 $15 {[%emt 0:00:22]} Rg8 {[%emt 0:04:08] The board is on fire.} 30. exd5 $2 {[%emt 0:05:30][%mdl 8192]} (30. Nd3 $11 {and White has nothing to worry.} Rxg4 31. Nxe5+ Nxe5 32. fxg4) 30... Rxg4 $19 {[%emt 0:03:04]} 31. dxe6+ {[%emt 0:00:04]} Ke8 {[%emt 0:00:32]} 32. fxg4 {[%emt 0:00:19] Black must now prevent g3.} Bxf4 {[%emt 0:00:49]} (32... Na3+ $19 33. Kc1 Bxf4+ 34. Kb2 Bd6 35. Bxd6 cxd6) 33. Rd7 $15 {[%emt 0:00:35] And now Re7+ would win.} Rd8 {[%emt 0:00:37]} (33... Nd2+ $15 34. Kb2 Be5+ 35. Bd4 (35. Kc1 Ne4 $17) 35... Bxd4+ 36. Rxd4 Rd8 37. Rxb4 Ke7) 34. Re7+ $11 {[%emt 0:00:33]} Kf8 {[%emt 0:00:34][%cal Rd8d1]} 35. Rd7+ {[%emt 0:00:11]} Ke8 {[%emt 0:00:13]} 36. Re7+ {[%emt 0:01:18]} Kf8 {[%emt 0:00:02][%cal Rd8d1]} 37. Rf7+ {[%emt 0:00:23] Black keeps a firm grip on the game.} (37. Rd7+ $11 Ke8) 37... Kg8 $17 {[%emt 0:00:08][%cal Rd8d1]} 38. Rd7 {[%emt 0:00:14] Prevents Rd1+.} (38. c3 $17 {keeps fighting.} Be5 39. Rd7 (39. cxb4 Re8 $17)) 38... Re8 $19 {[%emt 0:00:36]} 39. e7 {[%emt 0:00:38]} Bd6 {[%emt 0:01:13]} 40. Bxd6 {[%emt 0:00:34]} cxd6 {[%emt 0:00:01][%mdl 4096] Endgame KRN-KR} (40... Nxd6 41. Kb2 $17) 41. c3 {[%emt 0:00:53]} bxc3 {[%emt 0:09:04]} 42. Kc2 {[%emt 0:00:09]} Kf7 {[%emt 0:00:28]} 43. Kxc3 {[%emt 0:00:10] [#]} Na3 {[%emt 0:03:02]} 44. Kb3 $2 {[%emt 0:01:27]} (44. Kd3 $17) 44... Nb5 {[%emt 0:01:04]} 45. a4 {[%emt 0:00:05] [#]} Ke6 $1 {[%emt 0:01:29]} ({And not} 45... Rxe7 46. Rxe7+ Kxe7 47. axb5 axb5 48. Kb4 $11) ({Inferior is} 45... Nd4+ 46. Kc4 Nc2 47. Rxd6 $15) 46. Rd8 {[%emt 0:00:46]} (46. Rb7 $19 Nd4+ 47. Kc4) 46... Nc7 {[%emt 0:00:02]} 47. g5 {[%emt 0:00:33]} Kxe7 {[%emt 0:00:48]} 48. Rxe8+ {[%emt 0:00:08]} Kxe8 {[%emt 0:00:03] KN-KP} 49. Kc4 {[%emt 0:00:18]} a5 {[%emt 0:01:01]} 50. h5 {[%emt 0:00:45]} Kf7 {[%emt 0:00:06] ( -> ...Ke6)} 51. g4 {[%emt 0:01:18]} Ke7 {[%emt 0:01:10] Black mates.} 52. Kd3 {[%emt 0:00:36]} d5 {[%emt 0:01:47]} 53. Kd4 {[%emt 0:00:09]} Kd6 {[%emt 0:00:14]} 54. g6 {[%emt 0:00:17]} Ne6+ {[%emt 0:00:10]} 55. Ke3 {[%emt 0:00:20]} hxg6 {[%emt 0:00:11]} 56. hxg6 {[%emt 0:00:30] KN-K3P} Ke5 {[%emt 0:00:20]} 57. g5 {[%emt 0:00:20]} Ng7 {[%emt 0:00:25]} 58. Kd3 {[%emt 0:00:18]} Nf5 {[%emt 0:00:05]} 59. Kd2 {[%emt 0:00:47]} Kd4 {[%emt 0:00:12]} 60. Ke2 {[%emt 0:00:25]} Kc3 {[%emt 0:00:19]} 61. Kf3 {[%emt 0:00:07]} d4 {[%emt 0:00:30][%cal Bd5d4,Bd4d3,Bd3d2][%mdl 32]} 62. Kf4 {[%emt 0:00:06]} Ng7 {[%emt 0:00:07]} 63. Ke5 {[%emt 0:00:05]} d3 {[%emt 0:00:03]} 64. Kf6 {[%emt 0:00:05]} Nh5+ {[%emt 0:00:02]} 65. Kf7 {[%emt 0:00:10]} d2 {[%emt 0:00:02] Weighted Error Value: White=0.68/Black=0.24 (precise)} 0-1

[Event "Silver Lake Festival 2022"]
[Site "Veliko Gradiste"]
[Date "2022.06.25"]
[Round "8.8"]
[White "Tadic, Stefan"]
[Black "Furman, Boris"]
[Result "1/2-1/2"]
[ECO "B64"]
[WhiteElo "2358"]
[BlackElo "2121"]
[Annotator "TA"]
[PlyCount "98"]
[EventDate "2022.06.16"]
[EventType "swiss"]
[EventCountry "SRB"]
[SourceTitle "playchess.com"]
[Source "ChessBase"]
[SourceQuality "1"]
[TimeControl "5400+30"]

{[%evp 19,98,50,44,46,48,45,48,52,56,49,51,45,78,44,49,47,52,41,43,24,16,16,24,21,26,23,29,29,37,36,34,36,36,37,33,28,43,42,34,29,33,-8,39,43,92,92,93,87,97,89,131,125,146,134,135,139,131,144,120,79,183,79,79,79,79,79,79,79,79,81,81,79,79,79,79,79,79,8,8,8,8]} 1. e4 {[%emt 0:00:17]} c5 {[%emt 0:00:06]} 2. Nf3 {[%emt 0:00:16]} Nc6 {[%emt 0:00:10]} 3. d4 {[%emt 0:00:11]} cxd4 {[%emt 0:00:05]} 4. Nxd4 {[%emt 0:00:04]} Nf6 {[%emt 0:00:10]} 5. Nc3 {[%emt 0:00:04]} d6 {[%emt 0:00:07]} 6. Bg5 {[%emt 0:00:07]} e6 {[%emt 0:00:07]} 7. Qd2 {[%emt 0:00:15]} Be7 {[%emt 0:00:09]} 8. O-O-O {[%emt 0:00:21]} O-O {[%emt 0:00:09]} 9. f4 {[%emt 0:00:11]} d5 {[%emt 0:00:18]} 10. e5 {[%emt 0:00:45]} Nd7 {[%emt 0:00:15]} 11. h4 {[%emt 0:00:15] B64: Sicilian: Richter-Rauzer: 7...Be7 8 0-0-0 0-0 9 f4 without 9...Nxd4.} Nxd4 {[%emt 0:00:34]} 12. Qxd4 {[%emt 0:00:13]} f6 {[%emt 0:00:14]} 13. exf6 {[%emt 0:32:21] White is slightly better.} Nxf6 {[%emt 0:00:38] [#]} 14. Be2 $146 {[%emt 0:18:15]} ({Predecessor:} 14. g3 h6 15. Qd3 a5 16. Bg2 a4 17. a3 Qb6 18. g4 Ra5 19. Bxf6 Bxf6 20. g5 Bxc3 21. Qxc3 {½-½ (39) Lefebvre,A (2315)-Van Tricht,M (2384) ICCF email 2015}) 14... h6 {[%emt 0:03:57]} 15. Kb1 {[%emt 0:06:21][%cal Oe2f3]} Qa5 {[%emt 0:03:21]} ({Less strong is} 15... hxg5 16. hxg5 a6 17. gxf6 Bxf6 18. Qd3 Bxc3 19. Qxc3 $16 (19. Qh7+ Kf7 $16)) 16. Qd3 {[%emt 0:05:03][%cal Od3g6] Black must now prevent Qg6! White is more active.} Bb4 {[%emt 0:09:25]} (16... hxg5 $2 17. hxg5 Kf7 18. gxf6 Bxf6 19. Bh5+ Ke7 20. Ne4 $1 $18 {[%mdl 512]}) 17. Bxf6 {[%emt 0:25:14]} Rxf6 {[%emt 0:00:23]} 18. Nb5 {[%emt 0:00:16]} Bd7 {[%emt 0:06:57]} 19. Rhf1 {[%emt 0:01:42]} Bxb5 {[%emt 0:02:21]} 20. Qxb5 {[%emt 0:00:04]} Qxb5 {[%emt 0:00:08]} 21. Bxb5 {[%emt 0:00:04]} Raf8 {[%emt 0:06:32]} 22. g3 {[%emt 0:00:02]} g5 {[%emt 0:03:08]} 23. fxg5 {[%emt 0:01:39]} Rxf1 {[%emt 0:01:17]} 24. Bxf1 {[%emt 0:05:34]} hxg5 $11 {[%emt 0:00:20][%mdl 4096] Endgame KRB-KRB} 25. Bh3 {[%emt 0:00:03]} Re8 {[%emt 0:02:03]} 26. hxg5 {[%emt 0:00:40]} Bc5 {[%emt 0:07:13]} 27. c3 {[%emt 0:01:34]} Kg7 {[%emt 0:01:23]} 28. Rf1 {[%emt 0:00:14]} e5 {[%emt 0:03:36]} 29. Bf5 {[%emt 0:00:51]} e4 {[%emt 0:02:17]} 30. Rh1 {[%emt 0:01:26]} e3 {[%emt 0:00:48]} (30... Re5 $11 {was preferrable.} 31. Rf1 e3) 31. Bd3 $14 {[%emt 0:00:01]} Bd6 {[%emt 0:09:30] [#]} (31... e2 $14 32. Re1 d4) 32. Rh7+ $1 $16 {[%emt 0:00:34]} Kg8 {[%emt 0:00:20] [#]} 33. Rd7 $1 {[%emt 0:01:03]} Bxg3 {[%emt 0:01:16]} 34. Be2 {[%emt 0:00:01]} Re5 {[%emt 0:04:10]} 35. Rxb7 {[%emt 0:00:03]} Rxg5 {[%emt 0:02:05]} 36. Rxa7 {[%emt 0:00:01]} Be5 {[%emt 0:01:00]} 37. Kc2 {[%emt 0:00:12]} d4 {[%emt 0:01:15]} 38. cxd4 {[%emt 0:02:18]} Bxd4 {[%emt 0:00:08]} 39. Ra4 {[%emt 0:00:01]} Bb6 {[%emt 0:08:45]} (39... Rc5+ $16 {is a better defense.} 40. Rc4 Rxc4+ 41. Bxc4+ Kf8) 40. Rg4 {[%emt 0:01:15]} (40. b4 $18) 40... Rxg4 {[%emt 0:00:35]} 41. Bxg4 {[%emt 0:00:00] Hoping for b4. KB-KB} Kf7 {[%emt 0:00:16]} 42. Kc3 {[%emt 0:00:01]} Ke7 {[%emt 0:00:12]} 43. Kc4 {[%emt 0:00:04]} Kd6 {[%emt 0:00:19]} 44. Kb5 {[%emt 0:00:45]} Kc7 {[%emt 0:01:03]} 45. b4 {[%emt 0:01:43] Threatens to win with Ka6.} Kb7 {[%emt 0:01:18]} 46. a4 {[%emt 0:00:05]} Ka7 {[%emt 0:00:12]} 47. Kc6 {[%emt 0:00:09]} Bd8 {[%emt 0:00:22]} 48. a5 {[%emt 0:00:50]} (48. Be2 $16) 48... Bxa5 $1 $11 {[%emt 0:00:24]} 49. bxa5 {[%emt 0:00:02] White threatens Be2 and mate.} Ka6 {[%emt 0:00:08] Weighted Error Value: White=0.11 (very precise) /Black=0.08 (flawless)} 1/2-1/2

[Event "Silver Lake Festival 2022"]
[Site "Veliko Gradiste"]
[Date "2022.06.25"]
[Round "8.9"]
[White "Efremov, Vladislav"]
[Black "Govedarica, Radovan"]
[Result "1/2-1/2"]
[ECO "D52"]
[WhiteElo "2125"]
[BlackElo "2289"]
[Annotator "TA"]
[PlyCount "88"]
[EventDate "2022.06.16"]
[EventType "swiss"]
[EventCountry "SRB"]
[SourceTitle "playchess.com"]
[Source "ChessBase"]
[SourceQuality "1"]
[TimeControl "5400+30"]

{[%evp 19,88,31,41,39,36,35,38,37,36,54,43,18,21,23,37,13,14,0,0,0,0,0,0,0,0,0,0,0,0,0,0,0,0,0,18,0,0,0,0,0,0,0,7,0,0,0,0,0,0,0,0,0,0,0,0,0,0,0,0,0,0,0,0,0,0,0,0,0,0,0,0]} 1. d4 {[%emt 0:00:02]} Nf6 {[%emt 0:01:42]} 2. c4 {[%emt 0:00:05]} e6 {[%emt 0:00:05]} 3. Nf3 {[%emt 0:00:10][%cal Bg1f3,Bf3d2,Bd2c4][%mdl 32]} d5 {[%emt 0:00:06]} 4. Nc3 {[%emt 0:00:08]} c6 {[%emt 0:00:14]} 5. Bg5 {[%emt 0:00:50]} Nbd7 {[%emt 0:00:06]} 6. e3 {[%emt 0:00:28]} Qa5 {[%emt 0:00:11]} 7. Nd2 {[%emt 0:00:43]} Bb4 {[%emt 0:00:04]} 8. Qc2 {[%emt 0:00:14]} dxc4 {[%emt 0:00:02]} 9. Bxf6 {[%emt 0:00:07]} Nxf6 {[%emt 0:00:16]} 10. Nxc4 {[%emt 0:00:04]} Qd5 {[%emt 0:00:04]} 11. O-O-O {[%emt 0:23:17] D52: Queen's Gambit Declined: Cambridge Springs Variation.} Bxc3 {[%emt 0:02:11]} 12. Qxc3 {[%emt 0:01:12]} O-O {[%emt 0:00:05]} 13. f3 {[%emt 0:02:06] White is slightly better.} c5 {[%emt 0:06:25]} 14. e4 {[%emt 0:03:29]} cxd4 {[%emt 0:01:25]} 15. Qxd4 {[%emt 0:00:38]} ({Much weaker is} 15. exd5 dxc3 16. Ne3 cxb2+ 17. Kxb2 exd5 18. Nxd5 Nxd5 19. Rxd5 Be6 $17) 15... Qxd4 {[%emt 0:00:01]} 16. Rxd4 {[%emt 0:00:07]} Bd7 {[%emt 0:01:50] [#]} 17. Kb1 $146 {[%emt 0:07:42]} ({Predecessor:} 17. Nd6 Bc6 18. Bb5 Bxb5 19. Nxb5 Rfc8+ 20. Kb1 Kf8 21. Ra4 a6 22. Nd6 Rc7 23. Rc1 {½-½ (67) Pelletier,Y (2564)-Pasko,L (2417) Terme Catez 2021}) 17... Rfd8 {[%emt 0:01:28] The position is equal.} 18. Be2 {[%emt 0:05:06]} Bb5 {[%emt 0:04:44]} 19. Rhd1 {[%emt 0:01:35]} Rxd4 {[%emt 0:00:16]} 20. Rxd4 {[%emt 0:00:02][%cal Oc4b6]} e5 {[%emt 0:00:20]} 21. Rd2 {[%emt 0:00:09]} Bxc4 {[%emt 0:00:05]} 22. Bxc4 $11 {[%emt 0:00:04][%mdl 4096] Endgame KRB-KRN} Kf8 {[%emt 0:01:23]} 23. b4 {[%emt 0:11:07]} Rc8 {[%emt 0:00:55]} 24. Bb3 {[%emt 0:00:09]} Ke7 {[%emt 0:00:07]} 25. Kb2 {[%emt 0:00:12]} Rc7 {[%emt 0:01:45]} 26. a4 {[%emt 0:06:04]} Ne8 {[%emt 0:00:55]} 27. Bd5 {[%emt 0:11:03]} Nd6 {[%emt 0:00:59]} 28. Rd1 {[%emt 0:01:48]} g6 {[%emt 0:02:03]} 29. Re1 {[%emt 0:02:30]} b6 {[%emt 0:00:36]} 30. Kb3 {[%emt 0:00:51]} a5 {[%emt 0:00:06]} 31. bxa5 {[%emt 0:05:44]} bxa5 {[%emt 0:00:39]} 32. g3 {[%emt 0:00:42]} Nb7 {[%emt 0:02:27]} 33. Bxb7 {[%emt 0:02:11]} Rxb7+ {[%emt 0:00:05] KR-KR} 34. Ka3 {[%emt 0:00:03]} Rd7 {[%emt 0:01:18]} 35. Rb1 {[%emt 0:00:21]} f5 {[%emt 0:00:25]} 36. Rb5 {[%emt 0:02:37][%csl LRa5,LRe5]} Rd3+ {[%emt 0:00:31]} 37. Rb3 {[%emt 0:00:22]} Rd2 {[%emt 0:01:27]} 38. Rb2 {[%emt 0:03:58]} Rxb2 {[%emt 0:01:52]} 39. Kxb2 {[%emt 0:00:04]} fxe4 {[%emt 0:00:04]} 40. fxe4 {[%emt 0:00:04] KP-KP} Kd6 {[%emt 0:00:12]} 41. Kc2 {[%emt 0:00:17]} Kc6 {[%emt 0:01:54]} (41... Kc5 $5 42. Kc3 h5 $11) 42. Kd3 {[%emt 0:00:14] [#] Kc4 is the strong threat.} Kc5 {[%emt 0:00:34] ( -> ...Kb4)} (42... g5 $5 43. g4 Kc5 $11) 43. Kc3 {[%emt 0:00:05]} h5 {[%emt 0:00:19]} 44. h4 {[%emt 0:00:05]} Kb6 {[%emt 0:00:04] Weighted Error Value: White=0.02 (flawless) /Black=0.01 (flawless)} 1/2-1/2